Cogmind - Beta 13 @@@ ROGUE MODE // 2024.06.28 @ 20:39:30 Player: QR-TZ Result: Destroyed by HQ-3OZ(R) with Subdweller Laser Performance ------------- Evolutions (0) 0 Regions Visited (2) 400 Robots Destroyed (19) 95 Value Destroyed (369) 369 Prototype IDs (1) 20 Alien Tech Used (0) 0 Bonus (0) 0 TOTAL SCORE: 884 Bonus ------- None Cogmind --------- Core Integrity 0/250 Matter 285/300 Energy 100/100 System Corruption 0% Temperature Cool (6) Movement Treading (240) Ox1 Location -10/Subcaves Parts ------- > --- POWER (1) -------- (None) > --- PROPULSION (2) --- Light Treads > --- UTILITY (2) ------ Large Storage Unit > --- WEAPON (2) ------- Light Assault Rifle Light Assault Rifle > --- INVENTORY (15) --- Ion Engine Light Ion Engine Wheel Wheel Improved Flight Unit Improved Flight Unit Improved Flight Unit Faulty Improved Flight Unit Signal Interpreter Hardened Light Armor Plating Hardened Light Armor Plating Hardened Light Armor Plating Light Assault Rifle Light Assault Rifle Peak State ------------ > --- POWER ------------ Ion Engine > --- PROPULSION ------- Light Treads Light Treads > --- UTILITY ---------- Small Storage Unit Large Storage Unit > --- WEAPON ----------- Medium Laser Assault Rifle > --- INVENTORY -------- Ion Engine Wheel Wheel Compact Wheel Signal Interpreter Light Assault Rifle [Rating: 7] Favorites ----------- Power Ion Engine Engine Ion Engine Propulsion Light Treads Treads Light Treads Flight Unit Improved Flight Unit Utility Large Storage Unit Device Seismic Detector Storage Large Storage Unit Weapon Light Assault Rifle Energy Gun Medium Laser Ballistic Gun Light Assault Rifle Build | -11 -10 -10 ------- Run | Yrd Mat Sub Slots Evolved . | . . . Power . | . . . Propulsion . | . . . Utility . | . . . Weapon . | . . . Parts Attached 14 | 6 8 . Power 1 | 1 . . Engine 1 | 1 . . Core . | . . . Reactor . | . . . Propulsion 5 | 2 3 . Treads 4 | 2 2 . Leg . | . . . Wheel . | . . . Hover . | . . . Flight 1 | . 1 . Utility 3 | 1 2 . Device 1 | . 1 . Storage 2 | 1 1 . Processor . | . . . Hackware . | . . . Protection . | . . . Artifact . | . . . Weapon 5 | 2 3 . Energy Gun 1 | 1 . . Energy Cannon . | . . . Ballistic Gun 4 | 1 3 . Ballistic Cannon . | . . . Launcher . | . . . Special Weapon . | . . . Impact Weapon . | . . . Slashing Weapon . | . . . Piercing Weapon . | . . . Special Melee Weapon . | . . . Unidentified Prototypes 1 | . 1 . Parts Lost 6 | . 5 1 Power 1 | . 1 . Propulsion 2 | . 1 1 Utility 1 | . 1 . Weapon 2 | . 2 . Highest Loss Streak 5 | . 5 1 To Critical Strikes . | . . . Average Slot Usage (%) 72 | . 73 69 Engine 4 | . 4 . Treads 23 | . 23 26 Device 2 | . 2 . Storage 14 | . 14 14 Energy Gun 4 | . 4 . Ballistic Gun 23 | . 22 28 Naked Turns . | . . . Heaviest Build 30 | 14 30 22 Greatest Support 40 | 40 40 40 Greatest Overweight (x) 7 | . 7 1 Average Overweight (x) 1 | . 1 . Largest Inventory Capacity 15 | 8 15 15 Average Capacity 14 | 7 14 15 Most Carried 15 | 5 15 14 Average Carried 9 | 2 10 14 Final Capacity 15 | 8 15 15 Final Carried 14 | 5 14 14 Class Distribution -------------------- 100% | Mutant Dominant Class ---------------- Mutant | -10/Materials Mutant | -10/Subcaves Resources | -11 -10 -10 ----------- Run | Yrd Mat Sub Matter Collected 490 | 260 230 . Remotely . | . . . Salvage Created 643 | 54 589 . Parts 44 | 2 42 . Haulers Intercepted 2 | . 2 . Recyclers Shooed . | . . . Parts Field Recycled . | . . . Retrieved Matter . | . . . Parts Self-Destructed . | . . . Prevented . | . . . Kills | -11 -10 -10 ------- Run | Yrd Mat Sub Combat Hostiles Destroyed 13 | . 13 . Guns 13 | . 13 . Classes Destroyed 6 | 1 5 . Hauler 2 | . 2 . Recycler 1 | 1 . . Operator 1 | . 1 . Watcher 2 | . 2 . Swarmer 6 | . 6 . Grunt 7 | . 7 . Best Kill Streak 10 | 1 10 . Combat Bots Only 10 | . 10 . Max Kills in Single Turn 2 | 1 2 . Gunslinging 1 | . 1 . Exploded . | . . . Melee . | . . . Uniques/NPCs Destroyed . | . . . Combat | -11 -10 -10 -------- Run | Yrd Mat Sub Hostile Shots Fired 102 | . 96 6 Missed 8 | . 8 . Damage Taken 963 | . 831 132 Core 263 | . 199 64 Absorbed by Shields . | . . . Core Remaining (%) 100 | 100 . . Volleys Fired 83 | 4 76 3 Largest 2 | 1 2 2 Hottest 70 | 50 70 40 Shots Fired 147 | 4 137 6 Gun 147 | 4 137 6 Cannon . | . . . Launcher . | . . . Special . | . . . Kinetic 104 | . 98 6 Thermal 43 | 4 39 . Explosive . | . . . Electromagnetic . | . . . Robot Hit Streak 12 | 3 12 4 Robot Miss Streak 4 | 1 4 1 Penetration Max . | . . . Secondary Targets 3 | . 3 . Max Gunslinging Chain 1 | . 1 . Shots Hit Robots 105 | 3 97 5 Core Hits 39 | 2 35 2 Critical Kills . | . . . Critical Parts Destroyed . | . . . Critical Strikes 7 | 1 6 . Burn 7 | 1 6 . Melee Attacks . | . . . Impact . | . . . Slashing . | . . . Piercing . | . . . Sneak Attacks . | . . . Combat Hostiles . | . . . Follow-up Attacks . | . . . Damage Inflicted 1154 | 38 1077 39 Guns 1154 | 38 1077 39 Cannons . | . . . Explosions . | . . . Melee . | . . . Ramming . | . . . Kinetic 740 | . 701 39 Thermal 414 | 38 376 . Explosive . | . . . Electromagnetic . | . . . Impact . | . . . Slashing . | . . . Piercing . | . . . Highest Corruption . | . . . Average Corruption . | . . . Corruption Purged . | . . . Corruption Blocked . | . . . Overload Shots . | . . . Overflow Damage . | . . . Projectiles . | . . . Explosions . | . . . Melee . | . . . Knockbacks . | . . . Impact . | . . . Kinetic . | . . . Secondary . | . . . Self-Inflicted Damage . | . . . Shots . | . . . Rammed . | . . . Targets Rammed . | . . . Kicked . | . . . Crushed . | . . . Highest Temperature 121 | 20 121 . Average Temperature 35 | 10 37 . Received Heat Transfer 294 | . 258 36 Siege Activations . | . . . Robots Corrupted . | . . . Combat Hostiles . | . . . Parts Fried . | . . . Impact Corruptions . | . . . Robots Melted . | . . . Combat Hostiles . | . . . Parts Melted 6 | 1 5 . Heat Transferred 1739 | 185 1554 . Parts Sabotaged . | . . . Parts Stolen . | . . . Parts Stripped . | . . . Power Chain Reactions . | . . . Alert | -11 -10 -10 ------- Run | Yrd Mat Sub Peak Influence 217 | 5 217 . Initial 3 | . 3 . Average 85 | . 92 . Maximum Alert Level 1 | . 1 . Low Security (%) 79 | 100 77 . Level 1 20 | . 22 . Level 2 . | . . . Level 3 . | . . . Level 4 . | . . . Level 5 . | . . . High Security . | . . . Max Security . | . . . Squads Dispatched 2 | . 2 . Investigation 1 | . 1 . Extermination . | . . . Reinforcement 1 | . 1 . Assault . | . . . Garrison . | . . . Intercept . | . . . Searches Triggered . | . . . Construction Impeded . | . . . Haulers Reinforced . | . . . Active Scanning Responses . | . . . Cargo Convoy Interrupts . | . . . Stealth | -11 -10 -10 --------- Run | Yrd Mat Sub Distress Signals 1 | . 1 . Communications Jammed . | . . . Distress Signals . | . . . Times Spotted 26 | . 25 1 Peak Tracking Total 6 | . 6 1 Tactical Retreats 1 | . 1 . Traps | -11 -10 -10 ------- Run | Yrd Mat Sub Traps Triggered 1 | . 1 . Indirectly . | . . . Trap Hack Attempts . | . . . Triggered . | . . . Disarmed . | . . . Reprogrammed . | . . . Reused . | . . . Traps Extracted . | . . . Installed . | . . . Triggered . | . . . Machines | -11 -10 -10 ---------- Run | Yrd Mat Sub Machines Disabled . | . . . Max in Single Turn . | . . . Machines Repaired . | . . . Machines Dismantled . | . . . Machines Sabotaged . | . . . Overloaded Fab Kills . | . . . Hacking | -11 -10 -10 --------- Run | Yrd Mat Sub Machines Accessed 2 | . 2 . Terminals 2 | . 2 . Fabricators . | . . . Repair Stations . | . . . Recycling Units . | . . . Scanalyzers . | . . . Garrison Access . | . . . Total Hacks 4 | . 4 . Successful 1 | . 1 . Failed 3 | . 3 . Catastrophic . | . . . Database Lockouts . | . . . Manual . | . . . Terminals 4 | . 4 . Fabricators . | . . . Repair Stations . | . . . Recycling Units . | . . . Scanalyzers . | . . . Garrison Access . | . . . Terminal Hacks 1 | . 1 . Zone Layout 1 | . 1 . Fabricator Hacks . | . . . Repair Station Hacks . | . . . Recycling Unit Hacks . | . . . Scanalyzer . | . . . Garrison Access Hacks . | . . . Unauthorized Hacks . | . . . Terminals . | . . . Fabricators . | . . . Repair Stations . | . . . Recycling Units . | . . . Scanalyzers . | . . . Garrison Access . | . . . Data Cores Recovered . | . . . Used . | . . . Hacking Detections 2 | . 2 . Full Trace Events . | . . . Feedback Events . | . . . Feedback Blocked . | . . . Robot Schematics Acquired . | . . . Robots Built . | . . . Authchips . | . . . Time . | . . . Total Robot Build Rating . | . . . Part Schematics Acquired . | . . . Parts Built . | . . . Authchips . | . . . Time . | . . . Total Part Build Rating . | . . . Parts Repaired . | . . . Time . | . . . Parts Recycled . | . . . Recycled Matter . | . . . Retrieved Matter . | . . . Retrieved Components . | . . . Parts Scanalyzed . | . . . Part Schematics Acquired . | . . . Parts Damaged . | . . . Bothacking | -11 -10 -10 ------------ Run | Yrd Mat Sub Used RIF Installer . | . . . Robots Hacked . | . . . Non-combat . | . . . Combat . | . . . Robot Hacks Applied . | . . . Relay Couplers Released . | . . . Fabnet Peak Effective % . | . . . Robots Rewired . | . . . Allies Hacked . | . . . Hacks Repelled . | . . . Allies | -11 -10 -10 -------- Run | Yrd Mat Sub Total Allies . | . . . Largest Group . | . . . Highest-Rated Group . | . . . Highest-Rated Ally . | . . . Total Orders . | . . . Ally Attacks . | . . . Total Damage . | . . . Kills . | . . . Allies Corrupted . | . . . Allies Melted . | . . . Intel | -11 -10 -10 ------- Run | Yrd Mat Sub Robot Analysis Total . | . . . Derelict Logs Recovered . | . . . Drone Launches . | . . . Drone Recoveries . | . . . Exploration | -11 -10 -10 ------------- Run | Yrd Mat Sub Turns Passed 1534 | 108 1335 91 Spaces Moved 485 | 56 380 49 Core 74 | 2 72 . Treads 411 | 54 308 49 Legs . | . . . Wheels . | . . . Hover . | . . . Flight . | . . . Fastest Speed 50 | 50 160 160 Average Speed 195 | 156 205 161 Slowest Speed 400 | 160 400 240 Overloaded Moves . | . . . Propulsion Burnouts . | . . . Robots Hopped . | . . . Cave-ins Triggered . | . . . Exploration Rate (%) 25 | 5 63 9 Regions Visited 2 Branch Regions 1 Pre-discovered Areas . | . . . Known Exits Taken . | . . . Unknown Exits Taken 2 | 1 1 . Scrap Searched . | . . . Spaces Dug . | . . . Terrain Destroyed . | . . . Melee . | . . . Projectile . | . . . AOE . | . . . Terrain Rammed . | . . . Walls Destroyed . | . . . Machines Disabled . | . . . Actions | -11 -10 -10 --------- Run | Yrd Mat Sub Total 936 | 70 809 57 Wait 335 | . 330 5 Move 483 | 55 379 49 Hop . | . . . Pick Up 17 | 5 12 . Fast Attach 9 | 6 3 . Attach 4 | . 4 . Detach 1 | . 1 . Swap 1 | . 1 . Drop 3 | . 3 . Fire 83 | 4 76 3 Melee . | . . . Ram . | . . . Kick . | . . . Crush . | . . . Escape Stasis . | . . . Rewire . | . . . Trap . | . . . Miscellaneous . | . . . Route ------- -11/Scrapyard -10/Materials (discovered 2 exits: [*Mat] / [*Sub]) -10/Subcaves History --------- Turn | Location | Event 42 | -11/Scrapyard | Discovered new exit (range 15) 109 | -11/Scrapyard | Entered Materials 307 | -10/Materials | Build established: Mutant 583 | -10/Materials | Core integrity fell below 50% 607 | -10/Materials | Destroyed 10 combat bots 611 | -10/Materials | Lost 5 parts (1p1n1u2w) 648 | -10/Materials | Discovered new exit (range 12) 1425 | -10/Materials | Discovered new exit (range 4) 1444 | -10/Materials | Entered Subcaves 1523 | -10/Subcaves | Core integrity fell below 20% 1535 | -10/Subcaves | Destroyed by HQ-3OZ(R) with Subdweller Laser Last Messages --------------- 01312_ T-07 Excavator is excavating. 01315_ K-01 Serf cleans the Matter Filter. 01317_ T-07 Excavator is excavating. 01318_ K-01 Serf cleans the Matter Filter. 01321_ U-05 Engineer lays Concrete. 01325_ U-05 Engineer builds a Wall. 01367_ T-07 Excavator is excavating. 01374_ U-05 Engineer lays Concrete. 01417_ T-07 Excavator is excavating. 01425_ EXIT=FOUND 01429_ U-05 Engineer lays Concrete. 01430_ T-07 Excavator is excavating. 01432_ U-05 Engineer lays Concrete. 01433_ U-05 Engineer builds a Wall. 01435_ U-05 Engineer lays Concrete. 01438_ U-05 Engineer builds a Wall. LOCATION=UNKNOWN AMBIENT_HEAT=-10 GOAL=ESCAPE 01520_ Lgt. Treads destroyed. Map ----- +----------------------------------------------------+ | ????????????# #?????????????????? | | ????????????## #?????????????????? | | ????????????## #?????????????????? | | ?????????#### #### #?????????????????? | | ???#?????# #??### #????????????????? | | ??## ????# ##?????# #????????????????? | | ### ???## #??????? #????????????????? | | ???## #???????#####????????????????? | | ??## #????????????????????????????? | | ## ##???????????????????????????? | | ###?????????????????????????? | | #?????????????????????????? | | ## ##????????????????????????? | | ????## ### ##??####?????????????????? | | ??????###??## #### #?????????????????? | | ????????????### ##????????????????? | | ?????????????## ##???????????????? | | ????????????## #### ##??????????????? | | ????????????# #?# #??????????????? | | ????????????## #?## #??????????????? | | ?????????????### #### ##??????????????? | | ??????????????## # # # #??????????????? | | ??????????????# ###?????????????? | | ?????????????# #?????????????? | | ???????????# ## # ##?????????????? | | ???????????## #####@ #??????????????? | | ????????????# #???#R #??????????????? | | ????????????# ##?? #??????????????? | | ????????????## ####?# #??????????????? | | ?????????????###???? ##??????????????? | | ?????????????????? #???????????????? | | ????????????????? #### #???????????????? | | ??????????????? ????### #???????????????? | | ?????????????? ???????## #???????????????? | | ????????????? ???????????##???????????????? | | ????????????? ?????????????????????????????? | | ???????????????????????????????????????????? | | ???????????????????????????????????????????? | | ???????????????????????????????????????????? | | ???????????????????????????????????????????? | | ???????????????????????????????????????????? | | ???????????????????????????????????????????? | | ???????????????????????????????????????????? | | ???????????????????????????????????????????? | | ???????????????????????????????????????????? | | ???????????????????????????????????????????? | | ???????????????????????????????????????????? | | ???????????????????????????????????????????? | | ???????????????????????????????????????????? | | ???????????????????????????????????????????? | +----------------------------------------------------+ Best States ------------- Heat Dissipation 25 Energy Generation 10 Energy Capacity 250 Matter Stores 300 Matter Capacity 300 Sight Range 16 Terrain Scan Density 10 Evasion (%) 40 Recoil Reduction 2 Item Schematics ----------------- None Robot Schematics ------------------ None Fabricated ------------ Nothing Alien Tech Used ----------------- None Achievements -------------- None Challenges ------------ None Game ------ Seed LightpackInertialThrower Manual? 0 Play Time 00:08:25 Cumulative 40.5 hours Start 2024.06.28 @ 20:31:19 End 2024.06.28 @ 20:39:30 Sessions 1 Manual Loads 0 Difficulty Rogue Special Mode None Game No. 24 Rogue 24 Adventurer 0 Explorer 0 Win Type - Total 2 Types 1/0/1/0/0/0/0/0/0 Lore% 31 Gallery% 39 Achievement% 34 Wizard Run 0 Options --------- Layout 0 ASCII 0 Keyboard 0 Movement Mouse Keybinds 0 Fullscreen 1 Font 24/Smallcaps Map View 76x50 Zoom Use 0% Tactical HUD 1 Map Filters NONE Filters NONE Steam 1 RUN: 64d2aa33-137a-4ff6-b1cf-3668d7524b26